bitfinex-derivatives/quotes_ETHF0:USTF0_20250614
["timestamp","ask_amount","ask_price","bid_price","bid_amount"]
[1749941258366,1.84093676,2524.0,2523.9,26.45181268]
[1749941258962,1.04884676,2524.0,2523.9,26.45181268]
[1749941259776,1.84093676,2524.0,2523.9,26.45181268]
[1749941260075,1.04884676,2524.0,2523.9,26.45181268]
[1749941260367,0.00595274,2524.3,2524.0,0.79209]
[1749941260571,0.00595274,2524.3,2524.2,0.79203]
[1749941260873,0.00595274,2524.3,2524.2,26.41673]
[1749941261075,0.00595274,2524.3,2524.2,32.04723]
[1749941261378,3.2078,2524.7,2524.6,0.7919]
[1749941261672,3.2078,2524.7,2524.6,25.0599]
[1749941262077,3.2078,2524.7,2524.6,27.0471]
[1749941262465,0.00595274,2524.9,2524.8,0.79184]
[1749941263467,0.00595274,2524.9,2524.7,1.3567]
[1749941263775,0.79184,2524.8,2524.7,1.3567]
[1749941263972,0.79184,2524.8,2524.7,2.14855]
[1749941264170,0.00595274,2524.9,2524.7,2.14855]
[1749941264372,0.79777274,2524.9,2524.8,0.6659]
[1749941265777,0.79777274,2524.9,2524.8,24.9299]
[1749941279200,0.79777274,2524.9,2524.8,25.72174]
[1749941279401,0.79777274,2524.9,2524.8,24.9299]
[1749941280804,0.79777274,2524.9,2524.8,26.2254]
[1749941281405,0.79777274,2524.9,2524.8,27.01724]
[1749941281808,0.79777274,2524.9,2524.8,26.2254]
[1749941282913,0.00595274,2524.9,2524.8,26.2254]
[1749941283209,0.00595274,2524.9,2524.8,27.01724]
[1749941283509,0.79776274,2524.9,2524.8,27.01724]
[1749941283912,0.00595274,2524.9,2524.8,27.01724]
[1749941284103,0.79776274,2524.9,2524.8,24.99799268]
[1749941284608,0.79776274,2524.9,2524.8,24.31809268]
[1749941284807,2.12216274,2524.9,2524.8,24.31809268]
[1749941285207,2.12216274,2524.9,2524.8,24.25]
[1749941285704,3.16615055,2524.9,2524.8,24.25]
[1749941287510,3.16615055,2524.9,2524.8,25.04184]
[1749941287712,1.84175055,2524.9,2524.8,25.04184]
[1749941288112,0.79776274,2524.9,2524.8,25.04184]
[1749941288303,0.00595274,2524.9,2524.8,25.10993268]
[1749941289012,0.79167,2525.4,2525.3,0.79166]
[1749941289309,1.83711282,2525.4,2525.3,25.03866]
[1749941289508,1.83711282,2525.4,2525.3,24.247]
[1749941290309,1.83711282,2525.4,2525.3,25.03868]
[1749941291214,1.83711282,2525.4,2525.3,24.247]
[1749941291814,1.83711282,2525.4,2525.3,24.9421]
[1749941292112,1.04544282,2525.4,2525.3,28.94158]
[1749941292313,0.00594095,2525.6,2525.4,0.79165]
[1749941292314,0.79164,2525.5,2525.4,0.79165]
[1749941292514,0.79171,2525.2,2525.1,0.79173]
[1749941292710,0.79174,2525.2,2525.1,0.6951]
[1749941293010,0.79174,2525.1,2525.0,6.287]
[1749941293214,0.79174,2525.1,2525.0,30.531]
[1749941293418,0.79177,2525.0,2524.9,6.287]
[1749941293613,0.79177,2525.0,2524.9,30.531]
[1749941294203,1.83704372,2525.0,2524.9,30.531]
[1749941295918,0.79176,2525.1,2525.0,0.79175]
[1749941296218,0.79176,2525.1,2525.0,4.66275]
[1749941301126,0.79177,2525.0,2524.9,30.531]
[1749941301826,0.79177,2525.0,2524.9,31.32281]
[1749941303324,0.79181,2524.9,2524.8,0.6279]
[1749941303523,0.79181,2524.9,2524.7,3.2078]
[1749941303524,0.79184,2524.8,2524.7,3.2078]
[1749941303723,1.83832686,2524.8,2524.7,27.4478]
[1749941304531,0.79193,2524.5,2524.4,0.79790274]
[1749941304720,0.79193,2524.5,2524.4,25.03690274]
[1749941305026,0.79192,2524.6,2524.5,0.79192]
[1749941305215,0.79192,2524.6,2524.5,25.03092]
[1749941305420,0.79192,2524.6,2524.5,24.239]
[1749941305725,0.79192,2524.6,2524.5,25.03093]
[1749941305928,1.3735,2524.8,2524.4,0.00595274]
[1749941305929,0.79193,2524.5,2524.4,0.00595274]
[1749941306229,0.79212,2523.9,2523.8,1.3211]
[1749941306426,0.79208,2524.1,2523.9,0.79212]
[1749941307023,1.97999,2524.3,2523.8,1.3302]
[1749941307232,0.79212,2523.9,2523.8,0.64344095]
[1749941307931,0.79212,2523.9,2523.8,0.00594095]
[1749941308319,1.83597613,2523.9,2523.8,0.00594095]
[1749941308532,3.10567613,2523.9,2523.8,0.00594095]
[1749941308725,0.79228,2523.4,2523.2,3.2078]
[1749941308924,9.53805,2523.9,2523.3,24.24]
[1749941309128,1.04277077,2523.8,2523.4,0.79226]
[1749941309328,0.79227,2523.5,2523.3,26.31729]
[1749941309526,0.79223,2523.6,2523.4,0.79228]
[1749941310429,0.79217,2523.8,2523.3,25.525]
[1749941310637,0.79217,2523.8,2523.7,0.79218]
[1749941311034,0.79214,2523.9,2523.7,0.79218]
[1749941311336,0.79215,2523.8,2523.7,0.79218]
[1749941311530,0.79221,2523.6,2523.5,3.2078]
[1749941311739,1.98031,2523.9,2523.4,25.03427]
[1749941311933,0.79225,2523.5,2523.4,25.03427]
[1749941312130,0.79224,2523.6,2523.4,25.03427]
[1749941312328,3.2078,2524.5,2523.5,1.98062]
[1749941312534,0.79211,2524.0,2523.8,0.79214]
[1749941312730,10.21646,2524.4,2523.7,0.79217]
[1749941313033,0.79211,2524.0,2523.8,0.79215]
[1749941313539,0.00594095,2524.3,2523.8,3.2078]
[1749941313740,0.00594095,2524.3,2524.1,0.79205]
[1749941314033,0.79795095,2524.3,2524.1,0.79205]
[1749941314244,0.79203,2524.2,2524.1,0.79205]
[1749941314433,0.79795095,2524.3,2524.1,0.79205]
[1749941314631,0.79795095,2524.3,2524.1,0.86014268]
[1749941314832,0.00594095,2524.3,2524.2,0.79203]
[1749941315136,0.79793095,2524.3,2524.1,0.86013268]
[1749941315329,0.79203,2524.2,2524.1,0.06809268]
[1749941315729,0.79203,2524.2,2524.0,0.79207]
[1749941316029,0.79209,2524.0,2523.9,1.3783]
[1749941316431,0.79207,2524.1,2523.9,2.17041]
[1749941318341,1.42425,2524.2,2524.0,0.79209]
[1749941318541,0.00594095,2524.3,2523.9,2.6661]
[1749941318741,0.79204,2524.2,2524.1,0.06809268]
[1749941320840,0.79209,2524.0,2523.9,25.6233]
[1749941321539,0.79209,2524.0,2523.9,26.41542]
[1749941321739,0.79208,2524.1,2524.0,0.79208]
[1749941323239,0.79209,2524.0,2523.9,26.4154]
[1749941323442,0.00594095,2524.3,2523.9,25.6233]
[1749941323642,0.79207,2524.1,2524.0,0.79207]
[1749941324745,0.79209,2524.0,2523.9,26.4154]
[1749941325047,0.79212,2523.9,2523.8,9.4968]
[1749941325246,0.79212,2523.9,2523.8,3.2078]
[1749941325642,0.79212,2523.9,2523.8,3.99995]
[1749941325943,0.79212,2523.9,2523.8,4.66305]
[1749941326145,0.7921,2524.0,2523.9,0.79211]
[1749941326842,0.7921,2524.0,2523.9,0.7921]
[1749941327047,0.7921,2524.0,2523.9,2.0458]
[1749941329855,0.7921,2524.0,2523.9,2.11389268]
[1749941330547,0.7921,2524.0,2523.9,0.06809268]
[1749941332855,0.7921,2524.0,2523.9,0.86021268]
[1749941333751,0.7921,2524.0,2523.9,0.06809268]
[1749941333953,0.79212,2523.9,2523.8,4.66304]
[1749941334453,0.79211,2524.0,2523.9,0.7921]
[1749941334848,0.79211,2524.0,2523.9,0.86019268]
[1749941335755,0.79211,2524.0,2523.9,0.06809268]
[1749941335946,1.83895093,2524.0,2523.9,0.06809268]
[1749941339659,1.83895093,2524.0,2523.9,0.86021268]
[1749941340161,1.83895093,2524.0,2523.9,0.06809268]
[1749941342564,3.88485093,2524.0,2523.9,0.06809268]
[1749941342858,3.88485093,2524.0,2523.9,0.86021268]
[1749941343158,2.50435093,2524.0,2523.9,0.86021268]
[1749941344457,2.50435093,2524.0,2523.9,0.06809268]
[1749941347961,1.71224093,2524.0,2523.9,0.86021268]
[1749941348159,1.04684093,2524.0,2523.9,4.06801268]
[1749941351867,0.79203,2524.2,2524.1,0.79206]
[1749941352067,1.83938205,2524.2,2524.1,0.79206]
[1749941352563,1.83938205,2524.2,2524.1,1.45526]
[1749941352768,1.83938205,2524.2,2524.1,0.6632]
[1749941353265,1.83938205,2524.2,2524.1,1.45526]
[1749941353767,1.83938205,2524.2,2524.1,0.6632]
[1749941355267,1.04735205,2524.2,2524.1,1.45526]
[1749941355470,1.04735205,2524.2,2524.1,2.80056]
[1749941357471,0.00495205,2524.2,2524.1,7.80056]
[1749941357675,0.79191,2524.6,2524.5,0.79192]
[1749941357870,0.6473,2524.8,2524.4,0.79194]
[1749941358373,0.7919,2524.6,2524.5,0.6769]
[1749941359076,0.65324095,2524.8,2524.6,0.7919]
[1749941359373,0.79189,2524.7,2524.6,0.7919]
[1749941359969,0.79189,2524.7,2524.5,1.46881]
[1749941360275,0.79189,2524.7,2524.5,1.53690268]
[1749941360876,0.7919,2524.6,2524.5,1.53690268]
[1749941361276,0.79189,2524.7,2524.6,0.7919]
[1749941361777,0.00594095,2524.8,2524.7,0.79187]
[1749941363377,0.79778095,2524.8,2524.7,0.79187]
[1749941363579,0.00594095,2524.8,2524.7,0.79187]
[1749941364372,0.00594095,2524.8,2524.7,2.05257]
[1749941365268,1.45156,2525.4,2525.3,0.79168]
[1749941365269,0.6599,2525.4,2525.3,0.79168]
[1749941365475,0.6846,2525.6,2525.2,3.2078]
[1749941365673,0.79161,2525.6,2525.2,3.2078]
[1749941365880,0.79161,2525.6,2525.3,1.2607]
[1749941366082,0.79163,2525.5,2525.3,1.2607]
[1749941366574,0.79161,2525.6,2525.5,0.79162]
[1749941366880,0.79749095,2525.7,2525.6,0.6371]
[1749941367774,0.79749095,2525.7,2525.3,1.2607]
[1749941367775,0.79164,2525.5,2525.3,2.05235]
[1749941367976,0.00594095,2525.7,2525.1,0.63374095]
[1749941367977,0.6539,2525.6,2525.1,0.63374095]
[1749941368183,0.6725,2525.5,2525.1,7.70447095]
[1749941368379,1.996,2525.5,2525.1,6.91274095]
[1749941368580,0.79171,2525.2,2525.1,6.91274095]
[1749941368778,0.79171,2525.2,2525.1,6.28494095]
[1749941369093,0.79171,2525.2,2525.1,7.07668095]
[1749941369584,0.79171,2525.2,2525.1,6.28494095]
[1749941370180,0.7917,2525.3,2525.1,6.28494095]
[1749941370381,0.7917,2525.3,2525.1,7.07665095]
[1749941370778,0.7917,2525.3,2525.2,0.79171]
[1749941371185,0.79171,2525.2,2525.1,0.00594095]
[1749941371380,2.16691,2525.2,2525.1,0.79768095]
[1749941371587,2.16691,2525.2,2525.1,0.00594095]
[1749941372685,2.16691,2525.2,2525.1,0.79768095]
[1749941373989,2.16691,2525.2,2525.1,0.00594095]
[1749941374186,2.16691,2525.2,2525.1,0.79768095]
[1749941374887,0.79171,2525.3,2525.2,0.7917]
[1749941375890,0.79171,2525.2,2525.1,0.79767095]
[1749941376190,0.7917,2525.3,2525.2,0.7917]
[1749941382393,1.46413,2525.5,2525.4,0.79165]
[1749941382592,0.79163,2525.5,2525.4,0.79165]
[1749941384399,1.82801212,2525.5,2525.4,0.79165]
[1749941384799,0.79163,2525.5,2525.4,0.79165]
[1749941387304,1.82899801,2525.5,2525.4,0.79165]
[1749941387997,0.79168,2525.3,2525.2,1.44579]
[1749941388201,0.79167,2525.4,2525.3,0.79165]
[1749941389706,0.85976268,2525.4,2525.3,0.79165]
[1749941390607,0.7917,2525.3,2525.2,0.79169]
[1749941393412,0.79171,2525.2,2525.1,0.00594095]
[1749941393614,2.13081,2525.2,2525.1,0.79768095]
[1749941393913,3.16962764,2525.2,2525.1,0.79768095]
[1749941396715,2.37791764,2525.2,2525.1,0.79768095]
[1749941400113,3.16962764,2525.2,2525.1,0.79768095]
[1749941400921,2.37791764,2525.2,2525.1,0.79768095]
[1749941404725,1.70751764,2525.2,2525.1,0.79768095]
[1749941404919,1.70751764,2525.2,2525.1,0.86577363]
[1749941406721,1.03881764,2525.2,2525.1,0.86577363]
[1749941406927,1.45952,2525.6,2525.5,0.79162]
[1749941407123,1.70759803,2525.6,2525.5,0.79162]
[1749941407423,1.03969803,2525.6,2525.5,0.79162]
[1749941408725,0.00594095,2525.7,2525.6,0.79159]
[1749941408926,1.04560818,2525.7,2525.6,0.79159]
[1749941411824,0.00594095,2525.7,2525.6,3.99939]
[1749941412023,0.79749095,2525.7,2525.6,30.49]
[1749941413426,0.79749095,2525.7,2525.6,31.28159]
[1749941414531,0.00594095,2525.7,2525.6,31.28159]
[1749941415628,0.00594095,2525.7,2525.6,34.48939]
[1749941416020,0.79749095,2525.7,2525.6,34.48939]
[1749941416628,0.00594095,2525.7,2525.6,34.48939]
[1749941419930,0.79143,2526.1,2526.0,0.79146]
[1749941420122,1.03634081,2526.1,2526.0,25.00146]
[1749941420328,0.6481,2526.4,2526.2,0.79137]
[1749941420525,0.6481,2526.4,2526.3,25.00137]
[1749941420833,0.79131,2526.5,2526.4,0.79132]
[1749941421232,0.79134,2526.4,2526.3,25.4725]
[1749941421533,0.79134,2526.4,2526.3,26.26387]
[1749941421731,0.00392497,2526.6,2526.3,25.4725]
[1749941421929,0.79133,2526.5,2526.4,0.79133]
[1749941422231,0.79521497,2526.6,2526.5,0.7913]
[1749941422437,0.00392497,2526.6,2526.5,0.7913]
[1749941422633,0.00392497,2526.6,2526.5,2.0509]
[1749941422836,0.00392497,2526.6,2526.5,2.7223]
[1749941423831,0.7913,2526.5,2526.4,6.27]
[1749941424036,1.4295,2526.5,2526.4,6.27]
[1749941424225,1.4295,2526.5,2526.4,6.9414]
[1749941425037,1.4295,2526.5,2526.4,7.73274]
[1749941425536,0.00392497,2526.6,2526.5,0.7913]
[1749941425738,0.00392497,2526.6,2526.5,3.9991]
[1749941426330,0.79519497,2526.6,2526.5,3.2078]
[1749941426735,0.7913,2526.5,2526.4,6.9414]
[1749941426935,0.7913,2526.5,2526.4,31.1464]
[1749941428134,0.79134,2526.4,2526.3,0.79137]
[1749941428337,0.79134,2526.4,2526.3,24.99537]
[1749941428536,0.00392497,2526.6,2526.3,24.204]
[1749941428726,0.00392497,2526.6,2526.5,0.7913]
[1749941428932,0.7913,2526.5,2526.4,1.41711]
[1749941429433,0.7913,2526.5,2526.4,0.6258]
[1749941429739,0.7913,2526.5,2526.4,1.41714]
[1749941430235,0.79521497,2526.6,2526.5,0.7913]
[1749941430437,0.7913,2526.5,2526.4,1.41711]
[1749941431240,0.79521497,2526.6,2526.5,0.7913]
[1749941432036,0.00392497,2526.6,2526.5,0.7913]
[1749941432541,0.79519497,2526.6,2526.5,6.269]
[1749941433137,0.00392497,2526.6,2526.5,32.5318]
[1749941434440,3.2078,2527.4,2526.5,31.7405]
[1749941434638,3.846,2527.4,2527.3,0.79105]
[1749941434941,3.846,2527.4,2527.3,24.99305]
[1749941435136,3.2078,2527.4,2527.3,24.99305]
[1749941435330,4.5259,2528.0,2527.3,27.4098]
[1749941435535,2.32729093,2527.9,2527.4,30.47694095]
[1749941435837,0.79098,2527.6,2527.5,24.203]
[1749941437134,2.71828,2527.6,2527.5,24.203]
[1749941439142,0.79099,2527.5,2527.4,24.20394095]
[1749941439442,2.78859,2527.5,2527.4,24.20394095]
[1749941439635,2.78859,2527.5,2527.4,24.99496095]
[1749941439843,1.9976,2527.5,2527.4,24.99496095]
[1749941440040,0.6928,2527.5,2527.4,24.99496095]
[1749941440935,1.48379,2527.5,2527.4,24.99496095]
[1749941442558,0.6928,2527.5,2527.4,24.99496095]
[1749941442939,1.48379,2527.5,2527.4,24.99496095]
[1749941443137,0.6928,2527.5,2527.4,24.99496095]
[1749941443734,1.42918,2527.6,2527.5,0.79099]
[1749941443932,0.79099,2527.5,2527.4,24.99494095]
[1749941444246,0.79099,2527.5,2527.4,24.20394095]
[1749941444746,0.79099,2527.5,2527.4,24.99496095]
[1749941444942,0.79099,2527.5,2527.4,0.00594095]
[1749941445132,2.16039,2527.5,2527.4,0.00594095]
[1749941447046,3.19701759,2527.5,2527.4,0.00594095]
[1749941447950,0.79118,2526.9,2526.8,6.265]
[1749941448140,0.79118,2526.9,2526.8,30.459]
[1749941448341,0.79118,2526.9,2526.8,31.25021]
[1749941448541,0.79118,2526.9,2526.8,30.459]
[1749941448945,0.79117,2527.0,2526.8,30.459]
[1749941449150,0.79117,2527.0,2526.9,0.79116]
[1749941451043,0.79118,2526.9,2526.8,30.459]
[1749941452051,0.79118,2526.9,2526.8,31.25021]
[1749941454150,0.79118,2526.9,2526.8,7.05621]
[1749941454352,0.79118,2526.9,2526.8,31.25121]
[1749941457856,0.79118,2526.9,2526.8,6.265]
[1749941458150,0.79118,2526.9,2526.8,30.46]
[1749941459746,0.79124,2526.7,2526.6,1.34194095]
[1749941459947,0.79124,2526.7,2526.6,24.20094095]
[1749941460750,0.79124,2526.7,2526.6,0.00594095]
[1749941460961,1.83114327,2526.7,2526.6,0.79721095]
[1749941461252,1.83114327,2526.7,2526.6,0.00594095]
[1749941462246,1.03990327,2526.7,2526.6,0.79721095]
[1749941462456,3.999,2526.9,2526.8,0.79121]
[1749941463654,0.79121,2526.8,2526.7,24.98722]
[1749941463956,0.79121,2526.8,2526.7,26.28772]
[1749941464650,3.2078,2526.9,2526.7,26.28772]
[1749941464857,3.999,2526.9,2526.8,0.79121]
[1749941465656,3.2078,2526.9,2526.8,0.79121]
[1749941465859,3.2078,2526.9,2526.8,2.10221]
[1749941466054,0.79706095,2527.1,2527.0,0.79115]
[1749941466351,0.79706095,2527.1,2527.0,24.98615]
[1749941466561,0.00594095,2527.1,2527.0,24.98615]
[1749941467055,0.79706095,2527.1,2527.0,24.195]
[1749941468460,0.79706095,2527.1,2527.0,24.98615]
[1749941468652,0.79706095,2527.1,2527.0,26.30835]
[1749941468858,0.00594095,2527.1,2527.0,26.30835]
[1749941469560,0.79706095,2527.1,2527.0,26.30835]
[1749941472856,0.79706095,2527.1,2527.0,25.5172]
[1749941473559,0.79706095,2527.1,2527.0,26.30835]
[1749941474766,0.00594095,2527.1,2527.0,26.30835]
[1749941475057,3.2078,2527.6,2527.5,0.79099]
[1749941475263,4.24775905,2527.6,2527.4,24.984]
[1749941475458,0.79099,2527.5,2527.4,24.984]
[1749941475655,0.79099,2527.5,2527.4,26.3361]
[1749941475856,0.79099,2527.5,2527.4,26.33612]
[1749941476060,0.79099,2527.5,2527.4,25.5451]
[1749941476261,0.79102,2527.4,2527.3,0.6856]
[1749941476856,1.83062347,2527.4,2527.2,24.192]
[1749941477063,0.79105,2527.3,2527.2,24.192]
[1749941477359,0.79109,2527.2,2527.1,1.3246]
[1749941477560,0.79109,2527.2,2527.1,24.8854]
[1749941478460,0.79109,2527.2,2527.1,25.67652]
[1749941479263,0.79109,2527.2,2527.1,24.8854]
[1749941479563,0.79109,2527.2,2527.1,25.67652]
[1749941479759,0.79109,2527.2,2527.1,24.8854]
[1749941479964,0.85918268,2527.2,2527.1,24.8854]
[1749941481571,0.85918268,2527.2,2527.1,25.67652]
[1749941481764,0.85918268,2527.2,2527.1,24.8854]
[1749941482070,0.85918268,2527.2,2527.1,25.67652]
[1749941482864,0.85918268,2527.2,2527.1,24.8854]
[1749941483064,0.85918268,2527.2,2527.1,25.67652]
[1749941483468,0.85918268,2527.2,2527.1,26.94852]
[1749941483673,0.06809268,2527.2,2527.1,26.94852]
[1749941484374,0.85918268,2527.2,2527.1,26.94852]
[1749941486473,0.79118,2527.0,2526.9,0.79117]
[1749941486677,0.79118,2527.0,2526.9,25.61477]
[1749941486973,0.79118,2527.0,2526.9,24.8236]
[1749941487174,0.79114,2527.1,2526.9,24.8236]
[1749941487371,0.79114,2527.1,2527.0,0.79113]
[1749941487874,0.79115,2527.0,2526.9,6.8966]
[1749941488073,0.79115,2527.0,2526.9,31.87878]
[1749941488379,0.85920268,2527.2,2527.1,0.79112]
[1749941488675,0.85920268,2527.2,2527.1,24.98212]
[1749941489075,0.79111,2527.2,2527.1,24.98212]
[1749941490078,0.85920268,2527.2,2527.1,24.98212]
[1749941491074,0.06809268,2527.2,2527.1,24.98212]
[1749941491576,0.06809268,2527.2,2527.1,26.29102]
[1749941491776,0.85918268,2527.2,2527.1,26.29102]
[1749941492777,1.89998172,2527.2,2527.1,26.29102]
[1749941494167,1.10941555,2527.2,2527.1,26.29102]
[1749941494877,1.90049555,2527.2,2527.1,26.29102]
[1749941495577,1.10941555,2527.2,2527.1,26.29102]
[1749941495777,1.90050555,2527.2,2527.1,26.29102]
[1749941496169,1.10941555,2527.2,2527.1,26.29102]
[1749941496375,1.90050555,2527.2,2527.1,26.29102]
[1749941496977,1.90050555,2527.2,2527.1,1.3089]
[1749941497183,0.79112,2527.1,2527.0,9.4718]
[1749941497388,1.83244287,2527.1,2527.0,3.2078]
[1749941497683,1.83244287,2527.1,2527.0,27.3978]
[1749941498482,1.83244287,2527.1,2527.0,28.18895]
[1749941498877,1.83244287,2527.1,2527.0,29.45305]
[1749941499376,1.04132287,2527.1,2527.0,29.45305]
[1749941499687,0.85920268,2527.2,2527.1,0.79112]
[1749941499871,0.06809268,2527.2,2527.1,0.79112]
[1749941500074,1.10971262,2527.2,2527.1,0.79112]
[1749941500272,0.06809268,2527.2,2527.1,2.05522]
[1749941500571,0.79097,2527.6,2527.5,0.79096]
[1749941500775,1.83281793,2527.6,2527.5,24.189]
[1749941500975,1.83281793,2527.6,2527.4,0.791]
[1749941500976,0.79102,2527.4,2527.3,0.6266]
[1749941501187,1.83284758,2527.4,2527.3,25.60665]
[1749941501394,1.8326981,2527.4,2527.3,25.60665]
[1749941501584,1.8326981,2527.4,2527.3,24.8156]
[1749941502180,1.0416781,2527.4,2527.0,10.1266]
[1749941502385,2.46343867,2527.3,2527.2,24.189]
[1749941503480,2.46343867,2527.3,2527.2,24.98009]
[1749941504387,1.83233867,2527.3,2527.2,24.189]
[1749941504785,1.83233867,2527.3,2527.2,24.98009]
[1749941505382,1.90043135,2527.3,2527.2,24.98009]
[1749941505887,1.90043135,2527.3,2527.2,24.189]
[1749941506485,1.83233867,2527.3,2527.2,24.189]
[1749941507385,1.83233867,2527.3,2526.8,1.97802]
[1749941507386,1.04128867,2527.3,2526.7,6.32970081]
[1749941507691,0.79113,2527.1,2527.0,3.99893]
[1749941507885,3.2078,2527.4,2527.1,0.79108]
[1749941508186,1.3081,2527.5,2527.2,0.79109]
[1749941508187,1.0411778,2527.3,2527.2,0.79109]
[1749941508392,0.79102,2527.4,2527.3,0.79103]
[1749941508686,1.83226702,2527.4,2527.3,27.3948]
[1749941508894,1.83226702,2527.4,2527.3,3.2078]
[1749941509090,0.79108,2527.2,2527.1,24.187]
[1749941509291,1.83232702,2527.2,2527.1,24.187]
[1749941510285,0.79115,2527.0,2526.9,3.2078]
[1749941510586,0.79115,2527.0,2526.9,28.18598]
[1749941511389,0.79115,2527.0,2526.9,27.3948]
[1749941513392,0.79115,2527.0,2526.9,28.18598]
[1749941514089,0.79115,2527.0,2526.9,27.3948]
[1749941514994,0.79115,2527.0,2526.9,28.18598]
[1749941515895,1.46014,2527.1,2527.0,0.79115]
[1749941516095,2.50049598,2527.1,2527.0,0.79115]
[1749941516990,0.79115,2527.0,2526.9,28.18595]
[1749941517496,1.46014,2527.1,2527.0,0.79115]
[1749941517690,0.79115,2527.0,2526.9,24.187]
[1749941517889,0.79115,2527.0,2526.9,24.97818]
[1749941518693,1.46014,2527.1,2527.0,0.79115]
[1749941518893,2.50082073,2527.1,2527.0,0.79115]
[1749941520394,0.79115,2527.0,2526.9,24.97816]
[1749941520798,0.79115,2527.0,2526.9,24.187]
[1749941522398,0.79115,2527.0,2526.9,24.97818]
[1749941523500,0.79115,2527.0,2526.9,24.187]
[1749941524400,0.79115,2527.0,2526.9,24.97818]
[1749941525303,0.79115,2527.0,2526.9,24.187]
[1749941525496,0.79115,2527.0,2526.9,24.97818]
[1749941525798,0.85924268,2527.0,2526.9,24.97818]
[1749941526503,0.85924268,2527.0,2526.9,24.187]
[1749941526801,1.90018529,2527.0,2526.9,24.187]
[1749941529504,1.90018529,2527.0,2526.9,24.97818]
[1749941529703,1.90011652,2527.0,2526.9,24.187]
[1749941529900,0.85924268,2527.0,2526.9,24.187]
[1749941530805,1.9001062,2527.0,2526.9,24.97818]
[1749941531605,0.85924268,2527.0,2526.9,24.97818]
[1749941532008,1.89991698,2527.0,2526.9,24.97818]
[1749941532506,1.89991698,2527.0,2526.9,24.187]
[1749941532903,1.90002487,2527.0,2526.9,24.97818]
[1749941534006,1.90002487,2527.0,2526.9,24.187]
[1749941534411,1.90004481,2527.0,2526.9,24.97818]
[1749941535210,1.90004481,2527.0,2526.9,24.187]
[1749941535512,0.79118,2526.9,2526.8,6.9268]
[1749941535811,0.79118,2526.9,2526.8,31.90301]
[1749941536207,0.79118,2526.9,2526.8,31.1118]
[1749941536410,0.79118,2526.9,2526.8,31.90301]
[1749941538216,0.06809268,2527.0,2526.8,31.90301]
[1749941538217,0.85926268,2527.0,2526.9,0.79118]
[1749941538516,1.90069322,2527.0,2526.9,0.79118]
[1749941539615,1.10952322,2527.0,2526.9,0.79118]
[1749941539816,0.6445,2527.5,2527.4,0.79102]
[1749941540021,1.83267803,2527.5,2527.4,24.97502]
[1749941540314,3.2078,2527.9,2527.7,0.7909]
[1749941540616,1.04086153,2527.8,2527.7,24.9749]
[1749941541023,1.83176153,2527.8,2527.7,24.9749]
[1749941541319,1.83176153,2527.8,2527.7,24.184]
[1749941543423,0.7909,2527.8,2527.7,24.184]
[1749941544220,0.7909,2527.8,2527.7,24.97493]
[1749941544420,0.7909,2527.8,2527.7,24.184]
[1749941545619,0.7909,2527.8,2527.7,24.97493]
[1749941546322,0.7909,2527.8,2527.7,25.63263]
[1749941546922,0.7909,2527.8,2527.7,24.8417]
[1749941547826,0.7909,2527.8,2527.7,26.89553]
[1749941548225,0.7909,2527.8,2527.7,26.1046]
[1749941548927,0.7909,2527.8,2527.7,26.89553]
[1749941549224,0.7909,2527.8,2527.7,26.1046]
[1749941550428,0.7909,2527.8,2527.7,1.9206]
[1749941551223,0.79096,2527.6,2527.5,3.2078]
[1749941551421,0.79096,2527.6,2527.2,6.259]
[1749941551422,0.79102,2527.4,2527.3,0.6679]
[1749941551626,0.79102,2527.4,2527.3,24.8459]
[1749941552428,0.79102,2527.4,2527.3,0.6679]
[1749941552631,0.79105,2527.3,2527.2,6.259]
[1749941552832,0.79105,2527.3,2527.2,30.436]
[1749941555031,0.85914268,2527.3,2527.2,30.436]
[1749941555733,0.85914268,2527.3,2527.0,3.2078]
[1749941555734,0.79112,2527.1,2527.0,3.2078]
[1749941557330,0.79112,2527.1,2527.0,3.99895]
[1749941558025,0.79112,2527.1,2527.0,3.2078]
[1749941558318,0.79112,2527.1,2527.0,3.876]
[1749941560030,0.79112,2527.1,2527.0,0.6682]
[1749941561431,0.79115,2527.0,2526.9,24.8137]
[1749941561634,1.45345,2527.0,2526.9,24.177]
[1749941564541,1.45345,2527.0,2526.9,24.96818]
[1749941564937,1.45345,2527.0,2526.9,24.177]
[1749941565533,1.45345,2527.0,2526.9,24.96818]
[1749941566139,0.6623,2527.0,2526.9,24.96818]
[1749941566841,1.45345,2527.0,2526.9,24.96818]
[1749941567040,0.79115,2527.0,2526.9,24.96818]
[1749941571341,0.85924268,2527.0,2526.9,24.96818]
[1749941575848,0.06809268,2527.0,2526.9,24.96818]
[1749941577349,0.85924268,2527.0,2526.9,24.96818]
[1749941578753,0.06809268,2527.0,2526.9,24.96818]
[1749941579050,0.85924268,2527.0,2526.9,24.96818]
[1749941580055,0.06809268,2527.0,2526.9,24.96818]
[1749941580348,0.85924268,2527.0,2526.9,24.96818]
[1749941585156,0.79118,2526.9,2526.8,3.2078]
[1749941585356,1.46918,2526.9,2526.8,27.3828]
[1749941585857,2.51114928,2526.9,2526.8,27.3828]
[1749941586358,2.51114928,2526.9,2526.8,28.81511]
[1749941586553,1.46918,2526.9,2526.8,28.81511]
[1749941587057,1.46918,2526.9,2526.8,28.0239]
[1749941587257,2.51095498,2526.9,2526.8,28.0239]
[1749941587455,0.79121,2526.8,2526.7,6.258]
[1749941587759,1.97819,2526.6,2525.9,33.6368]
[1749941587959,0.79146,2526.0,2525.9,33.6368]
[1749941588159,0.79146,2526.0,2525.9,6.256]
[1749941588353,0.79146,2526.0,2525.9,30.43]
[1749941588554,0.79155,2525.7,2525.6,12.0524]
[1749941588853,0.79155,2525.7,2525.6,36.2264]